[Event "Late-Titled-Tuesday-Blitz-April-30-2024"]
[Site "Chess.com"]
[Date "2024.04.30"]
[Round "6"]
[White "ATM622"]
[Black "PoAslan"]
[Result "0-1"]
[WhiteElo "2511"]
[BlackElo "2395"]
[TimeControl "180+1"]
[EndTime "15:08:04 PDT"]
[Termination "PoAslan won by checkmate"]

1. d4 {[%clk 0:02:57.4]} 1... d5 {[%clk 0:02:59.4]} 2. c4 {[%clk 0:02:56.3]}
2... c6 {[%clk 0:02:59.4]} 3. Nf3 {[%clk 0:02:56.1]} 3... e6 {[%clk 0:02:58.1]}
4. Nbd2 {[%clk 0:02:56.3]} 4... f5 {[%clk 0:02:56.5]} 5. Qc2 {[%clk 0:02:56.8]}
5... Nf6 {[%clk 0:02:56.7]} 6. g3 {[%clk 0:02:56.8]} 6... Bd6 {[%clk 0:02:57.2]}
7. Bg2 {[%clk 0:02:57.1]} 7... O-O {[%clk 0:02:57.8]} 8. O-O {[%clk 0:02:56.8]}
8... Nbd7 {[%clk 0:02:58.3]} 9. b3 {[%clk 0:02:57.1]} 9... Ne4 {[%clk
0:02:58.4]} 10. Bb2 {[%clk 0:02:55.9]} 10... Qe7 {[%clk 0:02:52.6]} 11. Ne5
{[%clk 0:02:55.7]} 11... Nxe5 {[%clk 0:02:46.8]} 12. dxe5 {[%clk 0:02:55.1]}
12... Bb4 {[%clk 0:02:45.6]} 13. Nxe4 {[%clk 0:02:48.2]} 13... fxe4 {[%clk
0:02:44.9]} 14. a3 {[%clk 0:02:47.8]} 14... Ba5 {[%clk 0:02:44.9]} 15. c5 {[%clk
0:02:40.6]} 15... Bc7 {[%clk 0:02:42.4]} 16. f4 {[%clk 0:02:39.6]} 16... exf3
{[%clk 0:02:40.3]} 17. exf3 {[%clk 0:02:38]} 17... b6 {[%clk 0:02:38.4]} 18. Bd4
{[%clk 0:02:33.4]} 18... Ba6 {[%clk 0:02:36.3]} 19. Rfe1 {[%clk 0:02:29.4]}
19... Rfc8 {[%clk 0:02:32.5]} 20. Rac1 {[%clk 0:02:26.4]} 20... Rab8 {[%clk
0:02:24.6]} 21. b4 {[%clk 0:02:23.9]} 21... Bc4 {[%clk 0:02:07.6]} 22. f4 {[%clk
0:02:21.8]} 22... bxc5 {[%clk 0:02:03.8]} 23. bxc5 {[%clk 0:01:58.9]} 23... Ba5
{[%clk 0:02:00.8]} 24. Re3 {[%clk 0:01:57]} 24... g6 {[%clk 0:01:59.7]} 25. g4
{[%clk 0:01:51]} 25... Rf8 {[%clk 0:01:51.7]} 26. Rf3 {[%clk 0:01:44.9]} 26...
Rb5 {[%clk 0:01:21.1]} 27. Qf2 {[%clk 0:01:41.8]} 27... Rb3 {[%clk 0:01:15]} 28.
Rxb3 {[%clk 0:01:31]} 28... Bxb3 {[%clk 0:01:15.9]} 29. Rb1 {[%clk 0:01:22]}
29... Bc4 {[%clk 0:01:11.6]} 30. h4 {[%clk 0:01:20.8]} 30... Bd8 {[%clk
0:01:09.8]} 31. h5 {[%clk 0:01:14.6]} 31... Bd3 {[%clk 0:01:04.6]} 32. Rd1
{[%clk 0:01:05.8]} 32... Be4 {[%clk 0:01:01.6]} 33. Bxe4 {[%clk 0:01:01.6]}
33... dxe4 {[%clk 0:01:02.5]} 34. h6 {[%clk 0:00:40.4]} 34... Bc7 {[%clk
0:00:55.1]} 35. Re1 {[%clk 0:00:34.3]} 35... Qd7 {[%clk 0:00:38.2]} 36. Rxe4
{[%clk 0:00:34]} 36... Qd5 {[%clk 0:00:36.9]} 37. Qf3 {[%clk 0:00:33.9]} 37...
Rb8 {[%clk 0:00:31.7]} 38. Bf2 {[%clk 0:00:17.7]} 38... Rb3 {[%clk 0:00:27.6]}
39. Qe2 {[%clk 0:00:11.1]} 39... Rb1+ {[%clk 0:00:18.5]} 40. Kg2 {[%clk
0:00:11.2]} 40... Ba5 {[%clk 0:00:17]} 41. Kg3 {[%clk 0:00:07.1]} 41... Bc3
{[%clk 0:00:14.5]} 42. Qf3 {[%clk 0:00:05.1]} 42... Rb3 {[%clk 0:00:13.3]} 43.
Re3 {[%clk 0:00:02.7]} 43... Qxc5 {[%clk 0:00:12.9]} 44. Rd3 {[%clk 0:00:02.5]}
44... Qc4 {[%clk 0:00:08.8]} 45. Rd8+ {[%clk 0:00:02.7]} 45... Kf7 {[%clk
0:00:09.3]} 46. Kg2 {[%clk 0:00:02.7]} 46... Bd4 {[%clk 0:00:08]} 47. Qd1 {[%clk
0:00:02.2]} 47... Rd3 {[%clk 0:00:07.2]} 48. Qe2 {[%clk 0:00:01.4]} 48... Bxf2
{[%clk 0:00:04.2]} 49. Qxf2 {[%clk 0:00:01.5]} 49... Rxd8 {[%clk 0:00:03.9]} 50.
Qxa7+ {[%clk 0:00:01.7]} 50... Ke8 {[%clk 0:00:03.4]} 51. Qf2 {[%clk 0:00:01.4]}
51... Qd5+ {[%clk 0:00:03.5]} 52. Kh2 {[%clk 0:00:01.4]} 52... Qd3 {[%clk
0:00:04.4]} 53. Qc5 {[%clk 0:00:01.3]} 53... Qd2+ {[%clk 0:00:05.3]} 54. Kh3
{[%clk 0:00:01.6]} 54... Rd3+ {[%clk 0:00:05.4]} 55. Kh4 {[%clk 0:00:02.1]}
55... Qh2+ {[%clk 0:00:06.1]} 56. Kg5 {[%clk 0:00:02.5]} 56... Rd7 {[%clk
0:00:03.8]} 57. Qxc6 {[%clk 0:00:02.6]} 57... Ke7 {[%clk 0:00:04.7]} 58. Qc5+
{[%clk 0:00:02.7]} 58... Kf7 {[%clk 0:00:04.9]} 59. Qc6 {[%clk 0:00:02.6]} 59...
Qd2 {[%clk 0:00:05.6]} 60. Qc5 {[%clk 0:00:02.3]} 60... Qd5 {[%clk 0:00:06.2]}
61. Qe3 {[%clk 0:00:02.2]} 61... Rb7 {[%clk 0:00:05.4]} 62. Qc3 {[%clk
0:00:02.1]} 62... Qd7 {[%clk 0:00:05]} 63. Qc5 {[%clk 0:00:02.1]} 63... Rc7
{[%clk 0:00:05.9]} 64. Qb6 {[%clk 0:00:02.2]} 64... Rc6 {[%clk 0:00:05.8]} 65.
Qb8 {[%clk 0:00:02.1]} 65... Qe7# {[%clk 0:00:06.1]} 0-1

[Event "Late-Titled-Tuesday-Blitz-April-30-2024"]
[Site "Chess.com"]
[Date "2024.04.30"]
[Round "6"]
[White "rezamahdavi2008"]
[Black "oskariot"]
[Result "0-1"]
[WhiteElo "2909"]
[BlackElo "2755"]
[TimeControl "180+1"]
[EndTime "15:08:05 PDT"]
[Termination "oskariot won by resignation"]

1. d4 {[%clk 0:03:00.9]} 1... Nf6 {[%clk 0:02:59.6]} 2. c4 {[%clk 0:03:00.6]}
2... c5 {[%clk 0:02:59.4]} 3. d5 {[%clk 0:02:59.2]} 3... g6 {[%clk 0:02:59.5]}
4. Nc3 {[%clk 0:02:58.4]} 4... Bg7 {[%clk 0:02:59.2]} 5. e4 {[%clk 0:02:58.8]}
5... d6 {[%clk 0:03:00.1]} 6. Nf3 {[%clk 0:02:58.6]} 6... O-O {[%clk 0:03:00.1]}
7. Be2 {[%clk 0:02:59.3]} 7... e6 {[%clk 0:03:00.4]} 8. O-O {[%clk 0:03:00.1]}
8... Re8 {[%clk 0:03:00.7]} 9. Nd2 {[%clk 0:03:00.1]} 9... Na6 {[%clk
0:02:59.5]} 10. Re1 {[%clk 0:02:21.3]} 10... Nc7 {[%clk 0:02:57.2]} 11. a4
{[%clk 0:02:21.3]} 11... Na6 {[%clk 0:02:55.1]} 12. Bf1 {[%clk 0:02:16.9]} 12...
Nb4 {[%clk 0:02:54.7]} 13. h3 {[%clk 0:02:04.9]} 13... e5 {[%clk 0:02:34.1]} 14.
a5 {[%clk 0:01:59.7]} 14... Rf8 {[%clk 0:02:34]} 15. b3 {[%clk 0:01:53.7]} 15...
Nh5 {[%clk 0:02:30.7]} 16. Na2 {[%clk 0:01:50.7]} 16... Qxa5 {[%clk 0:02:20.9]}
17. Bb2 {[%clk 0:01:30.2]} 17... Nxa2 {[%clk 0:02:17.3]} 18. b4 {[%clk
0:01:30.7]} 18... Qxb4 {[%clk 0:02:11.5]} 19. Rxa2 {[%clk 0:01:30.7]} 19... Qb6
{[%clk 0:02:10]} 20. Bc3 {[%clk 0:01:28.6]} 20... Qc7 {[%clk 0:02:09.2]} 21. Qc2
{[%clk 0:01:26.1]} 21... f5 {[%clk 0:02:05.9]} 22. Bd3 {[%clk 0:01:24.1]} 22...
Nf4 {[%clk 0:02:04.2]} 23. Bf1 {[%clk 0:01:24.7]} 23... Kh8 {[%clk 0:01:56]} 24.
Rea1 {[%clk 0:01:18.4]} 24... b6 {[%clk 0:01:56]} 25. Ra3 {[%clk 0:01:14.7]}
25... g5 {[%clk 0:01:53.5]} 26. exf5 {[%clk 0:01:08.2]} 26... Bxf5 {[%clk
0:01:54.4]} 27. Ne4 {[%clk 0:01:09.1]} 27... Bf6 {[%clk 0:01:32]} 28. Kh2 {[%clk
0:00:39.7]} 28... Bg7 {[%clk 0:01:15.9]} 29. g3 {[%clk 0:00:35.1]} 29... Ng6
{[%clk 0:01:12.9]} 30. Bg2 {[%clk 0:00:34.7]} 30... h6 {[%clk 0:01:11.1]} 31.
Qe2 {[%clk 0:00:34.5]} 31... Ne7 {[%clk 0:00:59.2]} 32. Ra6 {[%clk 0:00:32.4]}
32... Bg6 {[%clk 0:00:57.4]} 33. Qa2 {[%clk 0:00:30.7]} 33... Nc8 {[%clk
0:00:37.7]} 34. Be1 {[%clk 0:00:27.5]} 34... Qf7 {[%clk 0:00:35.7]} 35. Nc3
{[%clk 0:00:27]} 35... h5 {[%clk 0:00:32.3]} 36. Nb5 {[%clk 0:00:26.5]} 36... h4
{[%clk 0:00:31.6]} 37. Nxa7 {[%clk 0:00:25.8]} 37... Ne7 {[%clk 0:00:25.8]} 38.
Nb5 {[%clk 0:00:24.1]} 38... Rxa6 {[%clk 0:00:24.8]} 39. Qxa6 {[%clk 0:00:25]}
39... Nf5 {[%clk 0:00:25.4]} 40. Qa7 {[%clk 0:00:18.1]} 40... Qf6 {[%clk
0:00:24.6]} 41. Qa3 {[%clk 0:00:17.8]} 41... hxg3+ {[%clk 0:00:24.2]} 42. fxg3
{[%clk 0:00:18.7]} 42... e4 {[%clk 0:00:23.6]} 43. Rd1 {[%clk 0:00:16.9]} 43...
Nd4 {[%clk 0:00:20.2]} 44. Qe3 {[%clk 0:00:16.5]} 44... Nf3+ {[%clk 0:00:18.4]}
45. Kh1 {[%clk 0:00:16.3]} 45... Qe5 {[%clk 0:00:11.8]} 46. Bf2 {[%clk
0:00:13.4]} 46... Nd4 {[%clk 0:00:11.3]} 47. Nc3 {[%clk 0:00:07]} 47... Bh5
{[%clk 0:00:09.7]} 48. Rc1 {[%clk 0:00:04.8]} 48... Bf3 {[%clk 0:00:09.9]} 49.
Nxe4 {[%clk 0:00:04.4]} 49... Bxg2+ {[%clk 0:00:09.6]} 50. Kxg2 {[%clk
0:00:05.3]} 50... Rf3 {[%clk 0:00:10.1]} 51. Qe1 {[%clk 0:00:03.6]} 51... Rd3
{[%clk 0:00:05.9]} 52. Rd1 {[%clk 0:00:02]} 52... Nf3 {[%clk 0:00:05.9]} 53. Qe2
{[%clk 0:00:01.8]} 53... Rxd1 {[%clk 0:00:06.4]} 54. Qxf3 {[%clk 0:00:02.3]}
54... Ra1 {[%clk 0:00:05.3]} 55. Qh5+ {[%clk 0:00:02.9]} 55... Kg8 {[%clk
0:00:05.5]} 56. Nxg5 {[%clk 0:00:03.8]} 56... Qf5 {[%clk 0:00:05.3]} 57. Qe8+
{[%clk 0:00:03.8]} 57... Bf8 {[%clk 0:00:05.7]} 58. Ne4 {[%clk 0:00:03.7]} 58...
Rd1 {[%clk 0:00:05.3]} 59. g4 {[%clk 0:00:03.5]} 59... Qf7 {[%clk 0:00:05]} 60.
Qd8 {[%clk 0:00:02.4]} 60... Rd3 {[%clk 0:00:04.9]} 61. Nf6+ {[%clk 0:00:02.9]}
61... Kg7 {[%clk 0:00:05]} 62. Nh5+ {[%clk 0:00:03.4]} 62... Kh8 {[%clk
0:00:05.3]} 63. Qg5 {[%clk 0:00:03.3]} 63... Qf3+ {[%clk 0:00:05.4]} 64. Kg1
{[%clk 0:00:02.7]} 64... Rd1+ {[%clk 0:00:05.3]} 0-1

[Event "Late-Titled-Tuesday-Blitz-April-30-2024"]
[Site "Chess.com"]
[Date "2024.04.30"]
[Round "6"]
[White "DucksParadise"]
[Black "HATilay"]
[Result "1-0"]
[WhiteElo "2607"]
[BlackElo "2653"]
[TimeControl "180+1"]
[EndTime "15:08:11 PDT"]
[Termination "DucksParadise won by resignation"]

1. d4 {[%clk 0:03:00.9]} 1... Nf6 {[%clk 0:03:00.2]} 2. Bf4 {[%clk 0:02:59.9]}
2... d5 {[%clk 0:03:00.1]} 3. Nf3 {[%clk 0:02:59.6]} 3... c5 {[%clk 0:03:00.2]}
4. e3 {[%clk 0:02:59.9]} 4... e6 {[%clk 0:02:59]} 5. Nbd2 {[%clk 0:02:59]} 5...
Nc6 {[%clk 0:02:59.1]} 6. c3 {[%clk 0:02:58.2]} 6... cxd4 {[%clk 0:02:59.3]} 7.
exd4 {[%clk 0:02:57.6]} 7... Nh5 {[%clk 0:02:59.6]} 8. Be3 {[%clk 0:02:49.3]}
8... Bd6 {[%clk 0:02:59.4]} 9. Ne5 {[%clk 0:02:46]} 9... Nf6 {[%clk 0:02:59.9]}
10. Ndf3 {[%clk 0:02:41.6]} 10... Nd7 {[%clk 0:02:48.9]} 11. Nxd7 {[%clk
0:02:36.5]} 11... Bxd7 {[%clk 0:02:48.8]} 12. Bd3 {[%clk 0:02:36.9]} 12... h6
{[%clk 0:02:36.9]} 13. O-O {[%clk 0:02:34]} 13... O-O {[%clk 0:02:37.3]} 14. Bc2
{[%clk 0:02:31.9]} 14... Qf6 {[%clk 0:02:06.2]} 15. Qd3 {[%clk 0:02:29.9]} 15...
Rfe8 {[%clk 0:02:06.8]} 16. Rae1 {[%clk 0:02:14.3]} 16... a6 {[%clk 0:01:50.4]}
17. Qh7+ {[%clk 0:01:33.2]} 17... Kf8 {[%clk 0:01:49.1]} 18. Ne5 {[%clk
0:01:33.1]} 18... Nxe5 {[%clk 0:01:39.5]} 19. dxe5 {[%clk 0:01:34]} 19... Qxe5
{[%clk 0:01:39.8]} 20. f4 {[%clk 0:01:34.4]} 20... Qh5 {[%clk 0:01:19]} 21. Bd4
{[%clk 0:01:24.8]} 21... Ke7 {[%clk 0:00:50.8]} 22. Qxg7 {[%clk 0:01:19.9]}
22... Kd8 {[%clk 0:00:21.7]} 23. Qf6+ {[%clk 0:01:03.5]} 23... Kc7 {[%clk
0:00:20.8]} 24. Be5 {[%clk 0:01:00.8]} 24... Rg8 {[%clk 0:00:15.7]} 25. Bxd6+
{[%clk 0:00:58.7]} 25... Kxd6 {[%clk 0:00:16]} 26. Qe5+ {[%clk 0:00:32.9]} 26...
Qxe5 {[%clk 0:00:15.3]} 27. fxe5+ {[%clk 0:00:33.8]} 27... Ke7 {[%clk 0:00:16]}
28. Rf6 {[%clk 0:00:33.9]} 28... Rg5 {[%clk 0:00:16.5]} 29. Rxh6 {[%clk
0:00:33.6]} 29... Rag8 {[%clk 0:00:17]} 30. g3 {[%clk 0:00:33.5]} 30... Rg4
{[%clk 0:00:06.8]} 31. Rf6 {[%clk 0:00:32.4]} 31... Be8 {[%clk 0:00:06.5]} 32.
Kf2 {[%clk 0:00:31.5]} 32... R8g5 {[%clk 0:00:06.4]} 33. Rf4 {[%clk 0:00:27.4]}
33... Rg8 {[%clk 0:00:04.7]} 34. Bd1 {[%clk 0:00:22.1]} 34... R4g5 {[%clk
0:00:05]} 35. Bf3 {[%clk 0:00:20.9]} 35... a5 {[%clk 0:00:05.2]} 36. g4 {[%clk
0:00:20.5]} 36... Rh8 {[%clk 0:00:05.3]} 37. Kg3 {[%clk 0:00:20.6]} 37... Rhh5
{[%clk 0:00:02.8]} 38. Re2 {[%clk 0:00:18.9]} 38... Rh8 {[%clk 0:00:02.3]} 39.
h4 {[%clk 0:00:18.4]} 39... Rg7 {[%clk 0:00:02.6]} 40. g5 {[%clk 0:00:17.5]}
40... Bb5 {[%clk 0:00:02.9]} 41. Re3 {[%clk 0:00:17.3]} 41... Bc4 {[%clk
0:00:02.9]} 42. b3 {[%clk 0:00:17]} 42... Bb5 {[%clk 0:00:03.5]} 43. Be2 {[%clk
0:00:15.6]} 43... Bc6 {[%clk 0:00:03.3]} 44. Rf6 {[%clk 0:00:10.6]} 44... Rgh7
{[%clk 0:00:03.1]} 45. Rf4 {[%clk 0:00:09.3]} 45... Rg8 {[%clk 0:00:03.4]} 46.
c4 {[%clk 0:00:06.5]} 46... dxc4 {[%clk 0:00:03]} 47. Bxc4 {[%clk 0:00:06.4]}
47... Rhg7 {[%clk 0:00:03.9]} 48. Rg4 {[%clk 0:00:03.2]} 48... Rd8 {[%clk
0:00:04.1]} 49. Rf4 {[%clk 0:00:01.9]} 49... Rd2 {[%clk 0:00:04.6]} 50. Rf2
{[%clk 0:00:01.2]} 50... Rd1 {[%clk 0:00:04.6]} 51. Ree2 {[%clk 0:00:01.3]}
51... Rg1+ {[%clk 0:00:04.6]} 52. Kf4 {[%clk 0:00:02.2]} 52... Rh7 {[%clk
0:00:04]} 53. Rh2 {[%clk 0:00:03.1]} 53... Rf1+ {[%clk 0:00:02.7]} 54. Ref2
{[%clk 0:00:04]} 54... Rxf2+ {[%clk 0:00:03.1]} 55. Rxf2 {[%clk 0:00:04.5]}
55... Rxh4+ {[%clk 0:00:03.8]} 56. Kg3 {[%clk 0:00:05.3]} 56... Rd4 {[%clk
0:00:04.1]} 57. Rf4 {[%clk 0:00:04.8]} 57... Rd2 {[%clk 0:00:03.8]} 58. a4
{[%clk 0:00:04.8]} 58... Rd1 {[%clk 0:00:04.1]} 59. Rf6 {[%clk 0:00:03.6]} 59...
Re1 {[%clk 0:00:04.3]} 60. g6 {[%clk 0:00:03.9]} 60... Rxe5 {[%clk 0:00:04.8]}
61. Rxf7+ {[%clk 0:00:04.1]} 61... Ke8 {[%clk 0:00:05.2]} 62. Rg7 {[%clk
0:00:03.7]} 62... Be4 {[%clk 0:00:04.4]} 63. Kf4 {[%clk 0:00:03.8]} 63... Kf8
{[%clk 0:00:01.5]} 64. Rf7+ {[%clk 0:00:04.2]} 64... Ke8 {[%clk 0:00:01.6]} 65.
Kxe5 {[%clk 0:00:05.1]} 1-0

[Event "Late-Titled-Tuesday-Blitz-April-30-2024"]
[Site "Chess.com"]
[Date "2024.04.30"]
[Round "6"]
[White "BogdanDeac"]
[Black "TigrVShlyape"]
[Result "1-0"]
[WhiteElo "3073"]
[BlackElo "2932"]
[TimeControl "180+1"]
[EndTime "15:08:14 PDT"]
[Termination "BogdanDeac won on time"]

1. e4 {[%clk 0:03:00.9]} 1... e5 {[%clk 0:02:59.2]} 2. Nf3 {[%clk 0:03:01.2]}
2... Nc6 {[%clk 0:02:59.3]} 3. Bb5 {[%clk 0:03:01.8]} 3... Nf6 {[%clk
0:02:59.5]} 4. O-O {[%clk 0:03:02.4]} 4... Nxe4 {[%clk 0:02:59.6]} 5. Re1 {[%clk
0:03:03]} 5... Nd6 {[%clk 0:03:00]} 6. Nxe5 {[%clk 0:03:03.6]} 6... Be7 {[%clk
0:03:00.4]} 7. Bf1 {[%clk 0:03:04.3]} 7... Nxe5 {[%clk 0:03:00.4]} 8. Rxe5
{[%clk 0:03:05.2]} 8... O-O {[%clk 0:03:00.5]} 9. Nc3 {[%clk 0:03:05.8]} 9...
Bf6 {[%clk 0:03:00.7]} 10. Re1 {[%clk 0:03:05.3]} 10... b6 {[%clk 0:03:01.1]}
11. d4 {[%clk 0:02:39.2]} 11... Bb7 {[%clk 0:03:01.1]} 12. Bd3 {[%clk
0:02:39.4]} 12... g6 {[%clk 0:02:47]} 13. Bh6 {[%clk 0:02:15.7]} 13... Re8
{[%clk 0:02:41.3]} 14. Qg4 {[%clk 0:02:13.5]} 14... Bg7 {[%clk 0:02:23.3]} 15.
Bg5 {[%clk 0:01:42.1]} 15... Bf6 {[%clk 0:02:20.6]} 16. h4 {[%clk 0:01:32.9]}
16... Bxg5 {[%clk 0:01:44.8]} 17. hxg5 {[%clk 0:01:30.1]} 17... Re7 {[%clk
0:01:35.9]} 18. Kf1 {[%clk 0:01:18.3]} 18... Qf8 {[%clk 0:01:31.8]} 19. Rxe7
{[%clk 0:01:15.3]} 19... Qxe7 {[%clk 0:01:32]} 20. Re1 {[%clk 0:01:15.9]} 20...
Qf8 {[%clk 0:01:32.4]} 21. Qxd7 {[%clk 0:01:01.5]} 21... Rc8 {[%clk 0:01:09.8]}
22. Qe7 {[%clk 0:00:42.5]} 22... Qxe7 {[%clk 0:01:07.8]} 23. Rxe7 {[%clk
0:00:41.9]} 23... Kf8 {[%clk 0:01:08.1]} 24. Re5 {[%clk 0:00:39.2]} 24... Rd8
{[%clk 0:01:06.1]} 25. Ne2 {[%clk 0:00:36.3]} 25... Ne8 {[%clk 0:00:58.9]} 26.
f3 {[%clk 0:00:25.4]} 26... f6 {[%clk 0:00:55.8]} 27. gxf6 {[%clk 0:00:24.8]}
27... Nxf6 {[%clk 0:00:55.9]} 28. c3 {[%clk 0:00:25.2]} 28... Nd7 {[%clk
0:00:51.6]} 29. Re3 {[%clk 0:00:24.2]} 29... Nf6 {[%clk 0:00:49.3]} 30. Nf4
{[%clk 0:00:23.9]} 30... Bc8 {[%clk 0:00:39.7]} 31. Ne6+ {[%clk 0:00:23.3]}
31... Bxe6 {[%clk 0:00:39.1]} 32. Rxe6 {[%clk 0:00:24.2]} 32... Rd6 {[%clk
0:00:36.5]} 33. Rxd6 {[%clk 0:00:17.5]} 33... cxd6 {[%clk 0:00:36.8]} 34. Kf2
{[%clk 0:00:18]} 34... g5 {[%clk 0:00:36.7]} 35. f4 {[%clk 0:00:09]} 35... h6
{[%clk 0:00:36.4]} 36. fxg5 {[%clk 0:00:08.3]} 36... hxg5 {[%clk 0:00:36.2]} 37.
c4 {[%clk 0:00:08.5]} 37... a5 {[%clk 0:00:35.2]} 38. b3 {[%clk 0:00:07.5]}
38... Ke7 {[%clk 0:00:35.3]} 39. a3 {[%clk 0:00:07.5]} 39... Kd7 {[%clk
0:00:33.8]} 40. Ke3 {[%clk 0:00:07]} 40... Kc6 {[%clk 0:00:32.2]} 41. Be4+
{[%clk 0:00:06.8]} 41... Kc7 {[%clk 0:00:31.7]} 42. Bf3 {[%clk 0:00:07.1]} 42...
Kd7 {[%clk 0:00:30.8]} 43. Kd3 {[%clk 0:00:07.2]} 43... Kc7 {[%clk 0:00:29.8]}
44. Kc3 {[%clk 0:00:06.9]} 44... Kd7 {[%clk 0:00:29.6]} 45. b4 {[%clk 0:00:07]}
45... axb4+ {[%clk 0:00:29.5]} 46. axb4 {[%clk 0:00:07.9]} 46... Kc7 {[%clk
0:00:24.1]} 47. Kb3 {[%clk 0:00:07.9]} 47... Nd7 {[%clk 0:00:19.3]} 48. Ka4
{[%clk 0:00:05.4]} 48... Nf8 {[%clk 0:00:19]} 49. Kb3 {[%clk 0:00:05.5]} 49...
Nd7 {[%clk 0:00:16.5]} 50. Ka3 {[%clk 0:00:04.8]} 50... Nf8 {[%clk 0:00:16.2]}
51. Kb2 {[%clk 0:00:05]} 51... Nd7 {[%clk 0:00:15.8]} 52. Bg4 {[%clk 0:00:05.1]}
52... Nf6 {[%clk 0:00:15.9]} 53. Bf5 {[%clk 0:00:05.4]} 53... Kc6 {[%clk
0:00:15.5]} 54. Kc3 {[%clk 0:00:04.6]} 54... Kc7 {[%clk 0:00:15.3]} 55. Kb3
{[%clk 0:00:04.3]} 55... Kc6 {[%clk 0:00:15.6]} 56. Bd3 {[%clk 0:00:04]} 56...
Ng4 {[%clk 0:00:14.7]} 57. Be2 {[%clk 0:00:03.2]} 57... Nf6 {[%clk 0:00:14]} 58.
Bf3+ {[%clk 0:00:03.4]} 58... Kc7 {[%clk 0:00:14]} 59. Ka4 {[%clk 0:00:03.9]}
59... Nd7 {[%clk 0:00:13.5]} 60. Kb5 {[%clk 0:00:03.5]} 60... Nf8 {[%clk
0:00:13.7]} 61. c5 {[%clk 0:00:03.6]} 61... bxc5 {[%clk 0:00:12.7]} 62. dxc5
{[%clk 0:00:04.1]} 62... Nd7 {[%clk 0:00:09.9]} 63. c6 {[%clk 0:00:02.9]} 63...
Nb6 {[%clk 0:00:09.2]} 64. Ka5 {[%clk 0:00:02.4]} 64... Nc4+ {[%clk 0:00:09]}
65. Kb5 {[%clk 0:00:02.1]} 65... Nb6 {[%clk 0:00:08.1]} 66. Be4 {[%clk
0:00:02.4]} 66... Nc8 {[%clk 0:00:07.4]} 67. Kc4 {[%clk 0:00:02.1]} 67... Ne7
{[%clk 0:00:04.9]} 68. b5 {[%clk 0:00:01.8]} 68... Kb6 {[%clk 0:00:03.6]} 69.
Bd3 {[%clk 0:00:02]} 69... Kc7 {[%clk 0:00:03.1]} 70. Kd4 {[%clk 0:00:02.3]} 1-0

[Event "Late-Titled-Tuesday-Blitz-April-30-2024"]
[Site "Chess.com"]
[Date "2024.04.30"]
[Round "6"]
[White "wild3000"]
[Black "zacachess"]
[Result "0-1"]
[WhiteElo "2488"]
[BlackElo "2355"]
[TimeControl "180+1"]
[EndTime "15:08:14 PDT"]
[Termination "zacachess won on time"]

1. d4 {[%clk 0:01:12]} 1... Nf6 {[%clk 0:02:59.4]} 2. Nf3 {[%clk 0:01:12.9]}
2... g6 {[%clk 0:02:57.6]} 3. e3 {[%clk 0:01:13.8]} 3... Bg7 {[%clk 0:02:57.7]}
4. Be2 {[%clk 0:01:14.7]} 4... O-O {[%clk 0:02:57.9]} 5. O-O {[%clk 0:01:15.6]}
5... d6 {[%clk 0:02:58.3]} 6. b3 {[%clk 0:01:16.4]} 6... c5 {[%clk 0:02:58.5]}
7. Bb2 {[%clk 0:01:16.9]} 7... Nc6 {[%clk 0:02:53.8]} 8. c4 {[%clk 0:01:17]}
8... d5 {[%clk 0:02:53.6]} 9. cxd5 {[%clk 0:01:16.8]} 9... Nxd5 {[%clk 0:02:53]}
10. Nc3 {[%clk 0:01:14.3]} 10... cxd4 {[%clk 0:02:32]} 11. Nxd4 {[%clk
0:01:09.5]} 11... Nxd4 {[%clk 0:02:31.4]} 12. exd4 {[%clk 0:01:09.6]} 12... Nxc3
{[%clk 0:02:05.3]} 13. Bxc3 {[%clk 0:01:10.5]} 13... Be6 {[%clk 0:02:05.8]} 14.
Rc1 {[%clk 0:01:07.5]} 14... Bd5 {[%clk 0:02:00.5]} 15. Bc4 {[%clk 0:01:05.1]}
15... e6 {[%clk 0:01:59]} 16. Qe2 {[%clk 0:01:02.1]} 16... Rc8 {[%clk
0:01:58.3]} 17. Bb2 {[%clk 0:00:58.8]} 17... a6 {[%clk 0:01:57.4]} 18. h3 {[%clk
0:00:56.5]} 18... b5 {[%clk 0:01:53]} 19. Bxd5 {[%clk 0:00:55.5]} 19... Qxd5
{[%clk 0:01:53.9]} 20. Qe3 {[%clk 0:00:45.4]} 20... Rfd8 {[%clk 0:01:51.9]} 21.
Rxc8 {[%clk 0:00:42]} 21... Rxc8 {[%clk 0:01:52.8]} 22. Bc3 {[%clk 0:00:36.7]}
22... Rd8 {[%clk 0:01:43.9]} 23. Qg3 {[%clk 0:00:21.5]} 23... Bxd4 {[%clk
0:01:38.6]} 24. Bxd4 {[%clk 0:00:21.8]} 24... Qxd4 {[%clk 0:01:39.5]} 25. Qc7
{[%clk 0:00:22]} 25... Qd6 {[%clk 0:01:38]} 26. Qa5 {[%clk 0:00:21.9]} 26... Kg7
{[%clk 0:01:35.5]} 27. Qc3+ {[%clk 0:00:21.1]} 27... Qd4 {[%clk 0:01:35.2]} 28.
Qa5 {[%clk 0:00:21.1]} 28... Rd6 {[%clk 0:01:35.4]} 29. a4 {[%clk 0:00:20.3]}
29... bxa4 {[%clk 0:01:19.8]} 30. Qxa4 {[%clk 0:00:20.5]} 30... Qxa4 {[%clk
0:01:15.3]} 31. bxa4 {[%clk 0:00:21.4]} 31... Rd4 {[%clk 0:01:11.7]} 32. Ra1
{[%clk 0:00:21.3]} 32... a5 {[%clk 0:01:08.5]} 33. Ra3 {[%clk 0:00:21]} 33... f5
{[%clk 0:01:07.3]} 34. g3 {[%clk 0:00:21.2]} 34... Kf6 {[%clk 0:01:06.9]} 35.
Kg2 {[%clk 0:00:21.1]} 35... e5 {[%clk 0:01:05.4]} 36. h4 {[%clk 0:00:21.3]}
36... e4 {[%clk 0:01:05]} 37. Kf1 {[%clk 0:00:21.4]} 37... Ke5 {[%clk
0:01:03.8]} 38. Ke2 {[%clk 0:00:21.7]} 38... Rb4 {[%clk 0:01:01.8]} 39. Rc3
{[%clk 0:00:21.3]} 39... Rxa4 {[%clk 0:01:00.3]} 40. Rc7 {[%clk 0:00:21]} 40...
Ra2+ {[%clk 0:00:59.5]} 41. Ke3 {[%clk 0:00:19.8]} 41... Ra3+ {[%clk 0:00:59.9]}
42. Ke2 {[%clk 0:00:19.8]} 42... h6 {[%clk 0:00:40.6]} 43. Rc6 {[%clk
0:00:18.1]} 43... g5 {[%clk 0:00:32.5]} 44. Rc5+ {[%clk 0:00:16.7]} 44... Kf6
{[%clk 0:00:30.5]} 45. h5 {[%clk 0:00:15.9]} 45... f4 {[%clk 0:00:29.4]} 46. g4
{[%clk 0:00:15.6]} 46... Ke6 {[%clk 0:00:25.8]} 47. Rc6+ {[%clk 0:00:15.4]}
47... Kd5 {[%clk 0:00:25.5]} 48. Rxh6 {[%clk 0:00:15.5]} 48... Ra2+ {[%clk
0:00:25.6]} 49. Ke1 {[%clk 0:00:15]} 49... e3 {[%clk 0:00:25.1]} 50. fxe3 {[%clk
0:00:14.8]} 50... fxe3 {[%clk 0:00:26]} 51. Rg6 {[%clk 0:00:15]} 51... Ke4
{[%clk 0:00:25.9]} 52. Rxg5 {[%clk 0:00:14.9]} 52... a4 {[%clk 0:00:25.1]} 53.
h6 {[%clk 0:00:14.7]} 53... Rh2 {[%clk 0:00:24.9]} 54. Rh5 {[%clk 0:00:12.4]}
54... Rg2 {[%clk 0:00:22.6]} 55. h7 {[%clk 0:00:11.6]} 55... Kf3 {[%clk
0:00:18.9]} 56. Rf5+ {[%clk 0:00:10]} 56... Kxg4 {[%clk 0:00:19.3]} 57. h8=Q
{[%clk 0:00:07.1]} 57... Kxf5 {[%clk 0:00:19.8]} 58. Qh3+ {[%clk 0:00:06.9]}
58... Rg4 {[%clk 0:00:19.5]} 59. Ke2 {[%clk 0:00:06.1]} 59... Kg5 {[%clk
0:00:18]} 60. Qxe3+ {[%clk 0:00:05.3]} 60... Rf4 {[%clk 0:00:17.8]} 61. Qc5+
{[%clk 0:00:04.2]} 61... Kg4 {[%clk 0:00:17.5]} 62. Ke3 {[%clk 0:00:03.2]} 62...
Rf3+ {[%clk 0:00:16.8]} 63. Ke4 {[%clk 0:00:02.1]} 63... Rf4+ {[%clk 0:00:17.1]}
64. Ke3 {[%clk 0:00:02]} 64... Rf3+ {[%clk 0:00:17.5]} 65. Ke2 {[%clk
0:00:02.4]} 65... Rf4 {[%clk 0:00:18]} 66. Qc8+ {[%clk 0:00:01.9]} 66... Kg5
{[%clk 0:00:18]} 0-1